bitfinex-derivatives/quotes_BTCF0:USTF0_20240817
["timestamp","ask_amount","ask_price","bid_price","bid_amount"]
[1723872153450,4e-05,59173.0,59172.0,0.069578]
[1723872155161,4e-05,59173.0,59172.0,0.13712535]
[1723872155456,4e-05,59173.0,59172.0,0.069578]
[1723872156558,4e-05,59173.0,59172.0,0.13712739]
[1723872156757,0.06738306,59173.0,59172.0,0.13712739]
[1723872158358,0.06738306,59173.0,59172.0,0.069578]
[1723872158554,0.06738306,59173.0,59172.0,0.13713578]
[1723872160663,0.06738306,59173.0,59172.0,0.069578]
[1723872161059,0.06738306,59173.0,59172.0,0.23054179]
[1723872161367,0.06738306,59173.0,59172.0,0.162978]
[1723872162561,4e-05,59173.0,59172.0,0.162978]
[1723872162960,0.06738306,59173.0,59172.0,0.162978]
[1723872167765,4e-05,59173.0,59172.0,0.25182227]
[1723872171167,4e-05,59173.0,59172.0,0.61262227]
[1723872171572,4e-05,59173.0,59172.0,0.25182227]
[1723872171761,4e-05,59173.0,59172.0,0.61262227]
[1723872171964,4e-05,59173.0,59172.0,0.25182227]
[1723872172165,4e-05,59173.0,59172.0,0.61262227]
[1723872175673,4e-05,59173.0,59172.0,0.61260923]
[1723872176680,0.06734306,59179.0,59172.0,0.54503123]
[1723872176972,0.06734306,59179.0,59177.0,0.16093304]
[1723872177370,0.16134306,59180.0,59179.0,0.067571]
[1723872177674,0.19134306,59180.0,59179.0,0.067571]
[1723872177874,0.20016535,59180.0,59179.0,0.067571]
[1723872178376,0.20016535,59180.0,59179.0,0.11821501]
[1723872179661,0.30756535,59180.0,59179.0,0.11821501]
[1723872181468,0.24022229,59180.0,59178.0,0.05064401]
[1723872181782,0.0934,59179.0,59178.0,0.05064401]
[1723872181975,0.4834,59179.0,59178.0,0.05064401]
[1723872182169,0.4834,59179.0,59177.0,0.05064401]
[1723872182170,0.39,59179.0,59177.0,0.05064401]
[1723872182372,0.39,59179.0,59177.0,0.06753304]
[1723872183264,0.45733112,59179.0,59178.0,0.06753304]
[1723872183470,0.45733112,59179.0,59178.0,0.06749304]
[1723872183670,0.46233112,59179.0,59178.0,0.06749304]
[1723872183873,0.46733112,59179.0,59178.0,0.06749304]
[1723872185378,0.46233112,59179.0,59178.0,0.06749304]
[1723872185679,0.46833112,59179.0,59178.0,0.06749304]
[1723872186080,0.46333511,59179.0,59177.0,0.067573]
[1723872186285,0.46933511,59179.0,59177.0,0.067573]
[1723872187176,0.46833511,59179.0,59177.0,0.067573]
[1723872187370,4e-05,59178.0,59177.0,0.067573]
[1723872187571,0.20004,59178.0,59177.0,0.067573]
[1723872189876,0.20504,59178.0,59177.0,0.067573]
[1723872190090,0.27737511,59178.0,59177.0,0.067573]
[1723872190272,0.01004,59178.0,59177.0,0.067573]
[1723872192679,0.01004,59178.0,59177.0,0.1519893]
[1723872193085,0.01004,59178.0,59177.0,0.067573]
[1723872195279,0.01004,59178.0,59177.0,0.1519893]
[1723872195687,0.00025344,59185.0,59177.0,0.99506353]
[1723872195880,0.00025344,59185.0,59184.0,0.521765]
[1723872196078,0.00025344,59185.0,59184.0,0.60612444]
[1723872196274,0.06733511,59195.0,59184.0,1.44737732]
[1723872196475,0.11233511,59197.0,59194.0,0.4542]
[1723872196673,0.11233511,59197.0,59196.0,0.067552]
[1723872196877,0.12118618,59197.0,59196.0,0.067552]
[1723872197081,0.05385107,59197.0,59196.0,0.067552]
[1723872197684,0.08185107,59197.0,59196.0,0.067552]
[1723872198085,0.08185107,59197.0,59196.0,0.11810093]
[1723872199080,0.08185107,59197.0,59196.0,0.068552]
[1723872199477,0.06785107,59197.0,59196.0,0.069552]
[1723872199679,0.08185107,59197.0,59196.0,0.069552]
[1723872200677,0.08185107,59197.0,59196.0,0.002]
[1723872201282,0.10185107,59197.0,59196.0,0.002]
[1723872206886,0.16940107,59197.0,59196.0,0.002]
[1723872208085,1.07620107,59197.0,59196.0,0.002]
[1723872208286,0.067556,59192.0,59191.0,0.00025344]
[1723872208487,0.550956,59192.0,59191.0,0.00025344]
[1723872209594,0.564996,59192.0,59191.0,0.00125344]
[1723872209791,0.067557,59191.0,59180.0,0.05054893]
[1723872209991,0.0934,59181.0,59178.0,0.05054893]
[1723872210298,0.0934,59179.0,59176.0,0.41134893]
[1723872210503,0.1134,59179.0,59176.0,0.41134893]
[1723872211498,4e-05,59177.0,59176.0,0.05054893]
[1723872212294,4e-05,59177.0,59176.0,0.05154893]
[1723872212890,0.00404,59177.0,59176.0,0.05054893]
[1723872213195,0.00704,59177.0,59176.0,0.05054893]
[1723872216988,0.00704,59177.0,59175.0,0.57324393]
[1723872217183,0.00704,59177.0,59175.0,0.57232393]
[1723872217401,0.00704,59177.0,59176.0,0.05054893]
[1723872217892,0.00704,59177.0,59175.0,0.57336393]
[1723872218104,0.00704,59177.0,59176.0,0.05054893]
[1723872218686,0.00704,59177.0,59175.0,0.57324393]
[1723872218999,0.00404,59177.0,59175.0,0.57232393]
[1723872219194,0.00504,59177.0,59175.0,0.57232393]
[1723872219497,0.00504,59177.0,59175.0,0.47892393]
[1723872219695,0.00604,59177.0,59175.0,0.47892393]
[1723872220090,0.00604,59177.0,59176.0,0.067534]
[1723872220295,0.006,59177.0,59176.0,0.067534]
[1723872220605,0.006,59177.0,59176.0,0.160934]
[1723872221401,0.005,59177.0,59176.0,0.160934]
[1723872221991,0.006,59177.0,59176.0,0.160934]
[1723872222301,0.007,59177.0,59176.0,0.160934]
[1723872224797,0.007,59177.0,59176.0,0.21148293]
[1723872230305,0.007,59177.0,59176.0,0.160934]
[1723872232711,0.007,59177.0,59176.0,0.205134]
[1723872237206,0.007,59177.0,59176.0,0.37801368]
[1723872237607,0.007,59177.0,59176.0,0.37800767]
[1723872238103,0.007,59177.0,59176.0,0.29365286]
[1723872239109,0.007,59177.0,59176.0,0.24945286]
[1723872243204,0.00025344,59183.0,59176.0,0.2830674]
[1723872243205,0.0506014,59179.0,59176.0,0.2830674]
[1723872243402,0.0506014,59180.0,59179.0,0.067571]
[1723872243604,0.0506014,59180.0,59179.0,0.24948986]
[1723872245309,0.0646014,59180.0,59179.0,0.25201756]
[1723872248313,0.014,59180.0,59179.0,0.25201756]
[1723872248706,0.014,59180.0,59179.0,0.3531661]
[1723872249419,0.014,59180.0,59179.0,0.25201756]
[1723872249615,0.014,59180.0,59179.0,0.3415524]
[1723872249809,0.014,59180.0,59179.0,0.25150584]
[1723872250129,0.014,59180.0,59179.0,0.61230584]
[1723872252714,0.014,59180.0,59179.0,0.71345438]
[1723872253114,0.014,59180.0,59179.0,0.35265438]
[1723872253313,0.014,59180.0,59179.0,0.71345438]
[1723872253510,0.014,59180.0,59179.0,0.61230584]
[1723872254322,0.014,59180.0,59179.0,0.61213975]
[1723872255022,0.014,59180.0,59179.0,0.25133975]
[1723872255207,0.014,59180.0,59179.0,0.61213975]
[1723872258117,0.014,59180.0,59179.0,0.25133975]
[1723872258325,0.014,59180.0,59179.0,0.61213975]
[1723872258722,0.014,59180.0,59179.0,0.61211961]
[1723872259118,0.014,59180.0,59179.0,0.25131961]
[1723872259319,0.014,59180.0,59179.0,0.61211961]
[1723872260921,0.014,59180.0,59179.0,0.25131961]
[1723872261121,0.014,59180.0,59179.0,0.61211961]
[1723872263222,0.014,59180.0,59179.0,0.522771]
[1723872263416,0.014,59180.0,59179.0,0.61212929]
[1723872263823,0.014,59180.0,59179.0,0.25132929]
[1723872264019,0.014,59180.0,59179.0,0.61212929]
[1723872265135,0.014,59180.0,59179.0,0.25132929]
[1723872265319,0.014,59180.0,59179.0,0.61212929]
[1723872266121,0.014,59180.0,59179.0,0.25132929]
[1723872266320,0.014,59180.0,59179.0,0.61212929]
[1723872266921,0.014,59180.0,59179.0,0.522771]
[1723872267230,0.014,59180.0,59179.0,0.61218471]
[1723872267916,0.014,59180.0,59179.0,0.25138471]
[1723872268430,0.014,59180.0,59179.0,0.61218471]
[1723872269826,0.014,59180.0,59179.0,0.71333325]
[1723872270833,0.014,59180.0,59179.0,0.35253325]
[1723872271131,0.014,59180.0,59179.0,0.71333325]
[1723872272522,0.014,59180.0,59179.0,0.71333767]
[1723872273929,0.014,59180.0,59179.0,0.35253767]
[1723872274130,0.014,59180.0,59179.0,0.71333767]
[1723872274326,0.014,59180.0,59179.0,0.61218913]
[1723872274522,0.014,59180.0,59179.0,0.71352654]
[1723872275425,0.014,59180.0,59179.0,0.61218913]
[1723872276331,0.014,59180.0,59179.0,0.71352654]
[1723872276534,0.014,59180.0,59179.0,0.61218913]
[1723872277037,0.014,59180.0,59179.0,0.61261245]
[1723872278140,0.014,59180.0,59179.0,0.25181245]
[1723872278330,0.014,59180.0,59179.0,0.61261245]
[1723872279338,0.014,59180.0,59179.0,0.25181245]
[1723872279526,0.014,59180.0,59179.0,0.61261245]
[1723872281127,0.014,59180.0,59179.0,0.25181245]
[1723872281437,0.014,59180.0,59179.0,0.61261245]
[1723872281640,0.014,59180.0,59179.0,0.6126181]
[1723872281839,0.014,59180.0,59179.0,0.2518181]
[1723872282029,0.014,59180.0,59179.0,0.6126181]
[1723872283240,0.014,59180.0,59179.0,0.71395551]
[1723872284637,0.014,59180.0,59179.0,0.35315551]
[1723872284836,0.014,59180.0,59179.0,0.71395551]
[1723872285240,0.014,59180.0,59179.0,0.35315551]
[1723872285537,0.014,59180.0,59179.0,0.71395551]
[1723872285734,0.014,59180.0,59179.0,0.35315551]
[1723872285937,0.014,59180.0,59179.0,0.6126181]
[1723872286236,0.014,59180.0,59179.0,0.522771]
[1723872286439,0.014,59180.0,59179.0,0.61234087]
[1723872288138,0.0646014,59180.0,59179.0,0.61234087]
[1723872288539,0.014,59180.0,59179.0,0.61234087]
[1723872288937,0.0646014,59180.0,59179.0,0.61234087]
[1723872289336,0.014,59180.0,59179.0,0.61234087]
[1723872289738,0.0646014,59180.0,59179.0,0.61234087]
[1723872290937,0.0646014,59180.0,59179.0,0.61259333]
[1723872291139,0.0646014,59180.0,59179.0,0.51919333]
[1723872291331,0.024,59180.0,59179.0,0.51919333]
[1723872292439,0.024,59180.0,59179.0,0.60364664]
[1723872292937,0.014,59180.0,59179.0,0.60364664]
[1723872294941,0.014,59180.0,59179.0,0.24284664]
[1723872295152,0.014,59180.0,59179.0,0.60364664]
[1723872295846,0.06457027,59180.0,59179.0,0.60364664]
[1723872296447,0.07457027,59180.0,59179.0,0.60364664]
[1723872298842,0.06457027,59180.0,59179.0,0.60364664]
[1723872299050,0.014,59180.0,59179.0,0.51919333]
[1723872300050,0.014,59180.0,59179.0,0.5191769]
[1723872300946,0.014,59180.0,59179.0,0.1583769]
[1723872301251,0.014,59180.0,59179.0,0.5191769]
[1723872303243,0.014,59180.0,59179.0,0.51921282]
[1723872304044,0.014,59180.0,59179.0,0.62055023]
[1723872306352,0.014,59180.0,59179.0,0.25975023]
[1723872306555,0.014,59180.0,59179.0,0.62055023]
[1723872307346,0.014,59180.0,59179.0,0.25975023]
[1723872307542,0.014,59180.0,59179.0,0.62055023]
[1723872311259,0.014,59180.0,59179.0,0.51921282]
[1723872311464,0.014,59180.0,59179.0,0.15841282]
[1723872312074,0.014,59180.0,59179.0,0.51921282]
[1723872312463,0.014,59180.0,59179.0,0.15811389]
[1723872312859,0.014,59180.0,59179.0,0.51891389]
[1723872313065,0.014,59180.0,59179.0,0.61231389]
[1723872315868,0.014,59180.0,59179.0,0.25151389]
[1723872316070,0.014,59180.0,59179.0,0.61231389]
[1723872316669,0.014,59180.0,59179.0,0.25151389]
[1723872316882,0.014,59180.0,59179.0,0.25152327]
[1723872317177,0.014,59180.0,59179.0,0.61232327]
[1723872317476,0.014,59180.0,59179.0,0.25152327]
[1723872318077,0.014,59180.0,59179.0,0.61232327]
[1723872318773,0.014,59180.0,59179.0,0.25152327]
[1723872319078,0.014,59180.0,59179.0,0.61232327]
[1723872319380,0.014,59180.0,59179.0,0.25152327]
[1723872319769,0.014,59180.0,59179.0,0.61232327]
[1723872320580,0.014,59180.0,59179.0,0.25152327]
[1723872321069,0.014,59180.0,59179.0,0.61232327]
[1723872323277,0.014,59180.0,59179.0,0.25152327]
[1723872323477,0.014,59180.0,59179.0,0.61232327]
[1723872323874,0.014,59180.0,59179.0,0.25152327]
[1723872324079,0.014,59180.0,59179.0,0.61232327]
[1723872324274,0.014,59180.0,59179.0,0.25152327]
[1723872324586,0.014,59180.0,59179.0,0.61232327]
[1723872325383,0.014,59180.0,59179.0,0.25152327]
[1723872325584,0.014,59180.0,59179.0,0.61232327]
[1723872325982,0.014,59180.0,59179.0,0.70190291]
[1723872326176,0.014,59180.0,59179.0,0.71368805]
[1723872326375,0.014,59180.0,59179.0,0.25155064]
[1723872326577,0.014,59180.0,59179.0,0.61235064]
[1723872327086,0.014,59180.0,59179.0,0.522771]
[1723872327387,0.014,59180.0,59179.0,0.25155544]
[1723872327579,0.014,59180.0,59179.0,0.61235544]
[1723872327776,0.014,59180.0,59179.0,0.25155544]
[1723872327981,0.014,59180.0,59179.0,0.61235544]
[1723872328484,0.014,59180.0,59179.0,0.25155544]
[1723872328880,0.014,59180.0,59179.0,0.61235544]
[1723872329278,0.014,59180.0,59179.0,0.71369285]
[1723872329483,0.014,59180.0,59179.0,0.35289285]
[1723872329683,0.014,59180.0,59179.0,0.71369285]
[1723872330390,0.014,59180.0,59179.0,0.35289285]
[1723872330587,0.014,59180.0,59179.0,0.71369285]
[1723872331880,0.014,59180.0,59179.0,0.35289285]
[1723872332085,0.014,59180.0,59179.0,0.61235544]
[1723872332574,0.014,59180.0,59179.0,0.71369285]
[1723872332781,0.014,59180.0,59179.0,0.61235544]
[1723872332983,0.014,59180.0,59179.0,0.25155544]
[1723872333586,0.014,59180.0,59179.0,0.35289285]
[1723872333786,0.014,59180.0,59179.0,0.25155544]
[1723872333989,0.014,59180.0,59179.0,0.71369285]
[1723872334479,0.014,59180.0,59179.0,0.35289285]
[1723872334677,0.014,59180.0,59179.0,0.71369285]
[1723872334881,0.014,59180.0,59179.0,0.35289285]
[1723872335083,0.014,59180.0,59179.0,0.71369285]
[1723872335283,0.014,59180.0,59179.0,0.71375621]
[1723872335779,0.06457027,59180.0,59179.0,0.6124188]
[1723872335991,0.06457027,59180.0,59179.0,0.2516188]
[1723872336190,0.06457027,59180.0,59179.0,0.6124188]
[1723872337887,0.06457027,59180.0,59179.0,0.2516188]
[1723872338089,0.06457027,59180.0,59179.0,0.6124188]
[1723872339688,0.06457027,59180.0,59179.0,0.522771]
[1723872339890,0.06457027,59180.0,59179.0,0.61239579]
[1723872343989,0.06457027,59180.0,59179.0,0.25159579]
[1723872344191,0.06457027,59180.0,59179.0,0.61239579]
[1723872345603,0.014,59180.0,59179.0,0.7137332]
[1723872346596,0.06457027,59180.0,59179.0,0.61239579]
[1723872347292,0.014,59180.0,59179.0,0.61239579]
[1723872347691,0.06456346,59180.0,59179.0,0.61239579]
[1723872347893,0.06456346,59180.0,59179.0,0.25159579]
[1723872348786,0.014,59180.0,59179.0,0.25159579]
[1723872350103,0.014,59180.0,59179.0,0.61239579]
[1723872351597,0.014,59180.0,59179.0,0.7137332]
[1723872351798,0.014,59180.0,59179.0,0.61239579]
[1723872352603,0.014,59180.0,59179.0,0.7137332]
[1723872353203,0.014,59180.0,59179.0,0.71398766]
[1723872357894,0.014,59180.0,59179.0,0.35318766]
[1723872358311,0.014,59180.0,59179.0,0.71398766]
[1723872358500,0.014,59180.0,59179.0,0.61265025]
[1723872359301,0.024,59180.0,59179.0,0.51925025]
[1723872359502,0.024,59180.0,59179.0,0.60371703]
[1723872359703,0.024,59180.0,59179.0,0.429371]
[1723872360205,0.024,59180.0,59179.0,0.60428209]
[1723872360598,0.024,59180.0,59179.0,0.51383778]
[1723872360997,0.024,59180.0,59179.0,0.15303778]
[1723872361912,0.024,59180.0,59179.0,0.068571]
[1723872364709,0.024,59180.0,59179.0,0.161971]
[1723872365304,0.0745497,59180.0,59179.0,0.161971]
[1723872371404,0.0645497,59180.0,59179.0,0.161971]
[1723872373213,0.014,59180.0,59179.0,0.33679276]
[1723872373415,0.0645497,59180.0,59179.0,0.24643778]
[1723872373711,0.0629,59180.0,59179.0,0.33671847]
[1723872375116,0.0629,59180.0,59179.0,0.69751847]
[1723872375913,0.1134497,59180.0,59179.0,0.69751847]
[1723872377017,0.1134497,59180.0,59179.0,0.33671847]
[1723872377322,0.1134497,59180.0,59179.0,0.69751847]
[1723872382917,0.1134497,59180.0,59179.0,0.33671847]
[1723872383222,0.1134497,59180.0,59179.0,0.69751847]
[1723872383921,0.1134497,59180.0,59179.0,0.33671847]
[1723872384307,0.1134497,59180.0,59179.0,0.69751847]
[1723872384513,0.1134497,59180.0,59179.0,0.61305169]
[1723872385917,0.1134497,59180.0,59179.0,0.25225169]
[1723872386125,0.1134497,59180.0,59179.0,0.61305169]
[1723872386514,0.0629,59180.0,59179.0,0.69750136]
[1723872386921,0.0629,59180.0,59179.0,0.33670136]
[1723872387215,0.0629,59180.0,59179.0,0.24642067]
[1723872387417,0.0629,59180.0,59179.0,0.33682305]
[1723872387724,0.0629,59180.0,59179.0,0.25237338]
[1723872390824,0.11346039,59180.0,59179.0,0.25237338]
[1723872391223,0.0629,59180.0,59179.0,0.25237338]
[1723872391519,0.11346021,59180.0,59179.0,0.25237338]
[1723872396133,0.11346021,59180.0,59179.0,0.61317338]
[1723872396837,0.06456021,59180.0,59179.0,0.61317338]
[1723872397032,0.014,59180.0,59179.0,0.61317338]
[1723872397233,0.014,59180.0,59179.0,0.61283006]
[1723872399939,0.014,59180.0,59179.0,0.25203006]
[1723872400234,0.014,59180.0,59179.0,0.61283006]
[1723872400434,0.014,59180.0,59179.0,0.25203006]
[1723872400733,0.014,59180.0,59179.0,0.61283006]
[1723872401435,0.014,59180.0,59179.0,0.25203006]
[1723872401631,0.014,59180.0,59179.0,0.61283006]
[1723872401833,0.014,59180.0,59179.0,0.61294518]
[1723872402736,0.014,59180.0,59179.0,0.71428259]
[1723872403036,0.014,59180.0,59179.0,0.35348259]
[1723872403232,0.014,59180.0,59179.0,0.71428259]
[1723872403433,0.014,59180.0,59179.0,0.35348259]
[1723872403633,0.014,59180.0,59179.0,0.71428259]
[1723872404423,0.014,59180.0,59179.0,0.61294518]
[1723872405138,0.014,59180.0,59179.0,0.25214518]
[1723872405336,0.014,59180.0,59179.0,0.61294518]
[1723872405537,0.014,59180.0,59179.0,0.25214518]
[1723872405837,0.014,59180.0,59179.0,0.61294518]
[1723872406439,0.014,59180.0,59179.0,0.2518275]
[1723872406733,0.014,59180.0,59179.0,0.6126275]
[1723872408533,0.014,59180.0,59179.0,0.2518275]
[1723872408728,0.014,59180.0,59179.0,0.6126275]
[1723872409442,0.014,59180.0,59179.0,0.2518275]
[1723872409635,0.014,59180.0,59179.0,0.6126275]
[1723872411139,0.014,59180.0,59179.0,0.61263044]
[1723872411337,0.014,59180.0,59179.0,0.25183044]
[1723872411638,0.014,59180.0,59179.0,0.61263044]
[1723872412538,0.014,59180.0,59179.0,0.25183044]
[1723872412734,0.014,59180.0,59179.0,0.61263044]
[1723872413335,0.00025344,59183.0,59179.0,0.54505944]
[1723872413637,0.03025344,59183.0,59182.0,0.17785335]
[1723872414231,0.03025344,59183.0,59182.0,0.24542135]
[1723872414833,0.03625344,59183.0,59182.0,0.24542135]
[1723872415442,0.03625344,59183.0,59182.0,0.24642135]
[1723872415443,0.03925344,59183.0,59182.0,0.24642135]
[1723872415748,0.04525344,59183.0,59182.0,0.60722135]
[1723872416342,0.03925344,59183.0,59182.0,0.60722135]
[1723872416542,0.04825344,59183.0,59182.0,0.70011364]
[1723872418540,0.04825344,59183.0,59182.0,0.60822135]
[1723872418843,0.04825344,59183.0,59182.0,0.523768]
[1723872419937,0.04825344,59183.0,59182.0,0.162968]
[1723872420246,0.04825344,59183.0,59182.0,0.523768]
[1723872420949,0.04825344,59183.0,59182.0,0.24742135]
[1723872421143,0.04825344,59183.0,59182.0,0.60822135]
[1723872421344,0.04825344,59183.0,59182.0,0.61727034]
[1723872423546,0.04825344,59183.0,59182.0,0.7091467]
[1723872424136,0.04825344,59183.0,59182.0,0.61727034]
[1723872424853,0.04825344,59183.0,59182.0,0.70915894]
[1723872425350,0.04825344,59183.0,59182.0,0.34835894]
[1723872425751,0.04825344,59183.0,59182.0,0.70915894]
[1723872426549,0.11540393,59183.0,59182.0,0.34835894]
[1723872426751,0.11540393,59183.0,59182.0,0.70915894]
[1723872427751,0.11540393,59183.0,59182.0,0.34835894]
[1723872427948,0.11540393,59183.0,59182.0,0.70915894]
[1723872428749,0.04825344,59183.0,59182.0,0.26390559]
[1723872428950,0.04825344,59183.0,59182.0,0.62470559]
[1723872432650,0.04825344,59183.0,59182.0,0.53130559]
[1723872441557,0.04825344,59183.0,59182.0,0.17050559]
[1723872441753,0.04825344,59183.0,59182.0,0.53140391]
[1723872443165,0.04825344,59183.0,59182.0,0.17060391]
[1723872443464,0.04825344,59183.0,59182.0,0.53140391]
[1723872443665,0.04825344,59183.0,59182.0,0.17060391]
[1723872443964,0.04825344,59183.0,59182.0,0.53140391]
[1723872445460,0.04825344,59183.0,59182.0,0.17060391]
[1723872445661,0.04825344,59183.0,59182.0,0.53140391]
[1723872445865,0.04825344,59183.0,59182.0,0.17060391]
[1723872446070,0.04825344,59183.0,59182.0,0.53140391]
[1723872446266,0.04825344,59183.0,59182.0,0.62481278]
[1723872447654,0.04825344,59183.0,59182.0,0.62480988]
[1723872447860,0.04825344,59183.0,59182.0,0.26400988]
[1723872448061,0.04825344,59183.0,59182.0,0.62480988]
[1723872450872,0.04825344,59183.0,59182.0,0.26400988]
[1723872451169,0.04825344,59183.0,59182.0,0.62480988]
[1723872451773,0.04825344,59183.0,59182.0,0.26400988]
[1723872451962,0.04825344,59183.0,59182.0,0.62480988]
[1723872452471,0.04825344,59183.0,59182.0,0.26400988]
[1723872452670,0.04825344,59183.0,59182.0,0.62480988]
[1723872453669,0.04825344,59183.0,59182.0,0.26400988]
[1723872453865,0.04825344,59183.0,59182.0,0.62480988]
[1723872454574,0.04825344,59183.0,59182.0,0.26400988]
[1723872454759,0.04825344,59183.0,59182.0,0.62480988]
[1723872455971,0.04825344,59183.0,59182.0,0.70929463]
[1723872457567,0.11540393,59183.0,59182.0,0.70929463]
[1723872462378,0.11540393,59183.0,59182.0,0.34849463]
[1723872462568,0.11540393,59183.0,59182.0,0.70929463]
[1723872464673,0.11540393,59183.0,59182.0,0.70928074]
[1723872465081,0.11540393,59183.0,59182.0,0.34848074]
[1723872465275,0.11540393,59183.0,59182.0,0.70928074]
[1723872466178,0.04825344,59183.0,59182.0,0.62479599]
[1723872466970,0.04825344,59183.0,59182.0,0.26399599]
[1723872467174,0.04825344,59183.0,59182.0,0.62479599]
[1723872468871,0.04825344,59183.0,59182.0,0.26399599]
[1723872469076,0.04825344,59183.0,59182.0,0.62479599]
[1723872469477,0.04825344,59183.0,59182.0,0.62479345]
[1723872470672,0.04825344,59183.0,59182.0,0.26399345]
[1723872470879,0.04825344,59183.0,59182.0,0.62479345]
[1723872471085,0.04825344,59183.0,59182.0,0.26399345]
[1723872471282,0.04825344,59183.0,59182.0,0.62479345]
[1723872471490,0.04825344,59183.0,59182.0,0.26399345]
[1723872471687,0.04825344,59183.0,59182.0,0.62479345]
[1723872471994,0.04825344,59183.0,59182.0,0.26399345]
[1723872472186,0.04825344,59183.0,59182.0,0.62479345]
[1723872472692,0.04825344,59183.0,59182.0,0.53281699]
[1723872472889,0.04825344,59183.0,59182.0,0.17201699]
[1723872473290,0.04825344,59183.0,59182.0,0.53281699]
[1723872473493,0.04825344,59183.0,59182.0,0.17201699]
[1723872473689,0.04825344,59183.0,59182.0,0.53281699]
[1723872473996,0.04825344,59183.0,59182.0,0.17201699]
[1723872474197,0.04825344,59183.0,59182.0,0.53281699]
[1723872474600,0.04825344,59183.0,59182.0,0.17201699]
[1723872475199,0.04825344,59183.0,59182.0,0.53281699]
[1723872475898,0.04825344,59183.0,59182.0,0.17201699]
[1723872476289,0.04825344,59183.0,59182.0,0.53281699]
[1723872476798,0.04825344,59183.0,59182.0,0.17201699]
[1723872476994,0.04825344,59183.0,59182.0,0.53281699]
[1723872477800,0.04825344,59183.0,59182.0,0.17201699]
[1723872478000,0.04825344,59183.0,59182.0,0.53281699]
[1723872478793,0.04825344,59183.0,59182.0,0.17201699]
[1723872479494,0.04825344,59183.0,59182.0,0.53281699]
[1723872479703,0.04825344,59183.0,59182.0,0.17201699]
[1723872480393,0.04825344,59183.0,59182.0,0.53281699]
[1723872481199,0.04825344,59183.0,59182.0,0.17201699]
[1723872481389,0.04825344,59183.0,59182.0,0.53281699]
[1723872481792,0.04825344,59183.0,59182.0,0.17201699]
[1723872482103,0.04825344,59183.0,59182.0,0.53281699]
[1723872482496,0.11566067,59183.0,59182.0,0.70930667]
[1723872483701,0.11566067,59183.0,59182.0,0.34850667]
[1723872484209,0.11566067,59183.0,59182.0,0.70930667]
[1723872485801,0.11566067,59183.0,59182.0,0.61590667]
[1723872486198,0.11566067,59183.0,59182.0,0.25510667]
[1723872486406,0.11566067,59183.0,59182.0,0.61591915]
[1723872487008,0.11566067,59183.0,59182.0,0.25511915]
[1723872487307,0.11566067,59183.0,59182.0,0.61591915]
[1723872487701,0.11566067,59183.0,59182.0,0.25511915]
[1723872487898,0.04825344,59183.0,59182.0,0.53143315]
[1723872488702,0.04825344,59183.0,59182.0,0.17063315]
[1723872488898,0.04825344,59183.0,59182.0,0.53143315]
[1723872491101,0.04825344,59183.0,59182.0,0.53144022]
[1723872492607,0.04825344,59183.0,59182.0,0.17064022]
[1723872492909,0.04825344,59183.0,59182.0,0.53144022]
[1723872493104,0.11566067,59183.0,59182.0,0.53144022]
[1723872494008,0.11566067,59183.0,59182.0,0.62484022]
[1723872495801,0.11566067,59183.0,59182.0,0.26404022]
[1723872496405,0.11566067,59183.0,59182.0,0.62484022]
[1723872498408,0.11566067,59183.0,59182.0,0.70932837]
[1723872498704,0.207862,59187.0,59182.0,0.70932837]
[1723872498705,0.3608,59191.0,59182.0,0.61730514]
[1723872498908,0.0505994,59192.0,59190.0,0.4542]
[1723872499102,0.1455994,59197.0,59191.0,0.54623644]
[1723872499300,0.095,59197.0,59196.0,0.3608]
[1723872499507,0.0453,59201.0,59196.0,0.45283644]
[1723872499704,0.0453,59201.0,59200.0,0.428347]
[1723872500109,0.0453,59201.0,59200.0,0.49577602]
[1723872501013,0.0453,59201.0,59200.0,0.428347]
[1723872501315,0.0453,59201.0,59200.0,0.429347]
[1723872501316,0.0493,59201.0,59200.0,0.429347]
[1723872501504,0.0543,59201.0,59200.0,0.430347]
[1723872502101,0.0543,59201.0,59200.0,0.429347]
[1723872502305,0.0493,59201.0,59200.0,0.430347]
[1723872503106,0.0493,59201.0,59200.0,0.48084771]
[1723872503815,0.0493,59201.0,59200.0,0.49002576]
[1723872504010,0.0493,59201.0,59200.0,0.07872505]
[1723872504217,0.0493,59201.0,59200.0,0.85081337]
[1723872504412,0.004,59201.0,59200.0,0.80032505]
[1723872504612,0.004,59201.0,59200.0,0.86771667]
[1723872505014,0.004,59201.0,59200.0,0.80032505]
[1723872505213,0.004,59201.0,59200.0,0.94418686]
[1723872505607,0.004,59201.0,59200.0,0.89372505]
[1723872519521,0.004,59201.0,59200.0,0.80032505]
[1723872519822,0.004,59201.0,59200.0,0.430347]
[1723872523221,0.214,59201.0,59200.0,0.430347]
[1723872524328,0.214,59201.0,59200.0,0.48076618]
[1723872525127,0.004,59201.0,59200.0,0.48076618]
[1723872526220,0.004,59201.0,59200.0,0.430347]
[1723872527027,0.004,59201.0,59200.0,0.49762948]
[1723872527331,0.004,59201.0,59200.0,0.430347]
[1723872528120,0.004,59201.0,59200.0,0.51471031]
[1723872528633,0.004,59201.0,59200.0,0.60387191]
[1723872529232,0.004,59201.0,59200.0,0.5195086]
[1723872531729,0.004,59201.0,59200.0,0.1587086]
[1723872531931,0.004,59201.0,59200.0,0.5195086]
[1723872532429,0.004,59201.0,59200.0,0.60390022]
[1723872533133,0.004,59201.0,59200.0,0.5195086]
[1723872536035,0.004,59201.0,59200.0,0.51924839]
[1723872536529,0.004,59201.0,59200.0,0.88004839]
[1723872539840,0.004,59201.0,59200.0,0.15844839]
[1723872540035,0.004,59201.0,59200.0,0.88004839]
[1723872541744,0.004,59201.0,59200.0,0.15844839]
[1723872541938,0.004,59201.0,59200.0,0.88004839]
[1723872543746,0.004,59201.0,59200.0,1.03004839]
[1723872544043,0.004,59201.0,59200.0,1.03000255]
[1723872544241,0.004,59201.0,59200.0,1.13125322]
[1723872545940,0.004,59201.0,59200.0,1.22465322]
[1723872546938,0.004,59201.0,59200.0,1.03000255]